Cogmind - Beta 15 @@@ ROGUE MODE // 2025.08.24 @ 05:53:14 Player: Florist Result: Destroyed self with Sigix Terminator Performance ------------- Evolutions (9) 4500 Regions Visited (22) 4400 Robots Destroyed (157) 785 Value Destroyed (3539) 3539 Prototype IDs (26) 520 Alien Tech Used (10) 2000 Bonus (859) 859 TOTAL SCORE: 16603 Bonus ------- High Alert Combat Kills 21 Entered Garrisons 200 Met Zhirov 300 MAIN.C Attacked Warlord 500 Friendly Fire -162 Cogmind --------- Core Integrity 0/1600 Matter 277/300 Energy 100/100 System Corruption 0% +Membrane Temperature Cool (0) Movement Core (50) Location -1/Garrison Parts ------- > --- POWER (3) -------- (None) > --- PROPULSION (7) --- (None) > --- UTILITY (12) ----- Enhanced Optical Array Advanced Signal Interpreter 0b10 Decoder Chip [Skirmisher] Improved Melee Analysis Suite Advanced Hacking Suite Advanced Hacking Suite > --- WEAPON (4) ------- (None) > --- INVENTORY (7) ---- Experimental Power Amplifier Improved Armor Integrity Analyzer Subatomic Replicator Peak State ------------ > --- POWER ------------ Light Antimatter Reactor Micro Antimatter Reactor > --- PROPULSION ------- Improved Cesium-ion Thruster Improved Cesium-ion Thruster Improved Cesium-ion Thruster Diametric Drive Diametric Drive Impulse Thruster Array > --- UTILITY ---------- Experimental Power Amplifier Advanced Cooling System Small Storage Unit Machine Analyzer Enhanced Optical Array Improved Sensor Array Advanced Signal Interpreter 0b10 Decoder Chip [Skirmisher] Improved Transmission Jammer Cloaking Device Advanced Hacking Suite Advanced Hacking Suite > --- WEAPON ----------- Tachyon Dispersion Ray Makeshift Sword > --- INVENTORY -------- Improved Armor Integrity Analyzer Dimensional Node Initializer High-powered Transdimensional Reconstructor High-powered Transdimensional Reconstructor Subatomic Replicator Heavy Plasma Cannon Vortex Cannon Multitool [Rating: 142] Favorites ----------- Power Enhanced Nuclear Core Engine Ion Engine Power Core Enhanced Nuclear Core Reactor Light Antimatter Reactor Propulsion Improved Cesium-ion Thruster Treads Light Treads Hover Unit Improved Airjet Flight Unit Improved Cesium-ion Thruster Utility Machine Analyzer Device Improved Sensor Array Storage Small Storage Unit Processor Machine Analyzer Hackware Advanced Hacking Suite Protection Improved Light Armor Plating Weapon Lightning Gun Energy Gun Lightning Gun Energy Cannon Particle Cannon Ballistic Gun Heavy Assault Rifle Launcher Grenade Launcher Special Weapon Multitool Slashing Weapon Makeshift Sword Build | -11 -10 -10 -8 -7 -6 -5 -5 -5 -5 -4 -4 -4 -4 -4 -3 -3 -3 -2 -2 -2 -1 -1 ------- Run | Yrd Mat Sub Mat Fac Fac Fac Upp Upp War Pro Fac Upp Upp Zhi Pro Res Tes Res Qua Sec Acc Gar Slots Evolved 16 | . . . 4 2 2 2 . . . . 2 . . . . 2 . 2 . . . . Power . | . . . . . . . . . . . . . . . . . . . . . . . Propulsion 5 | . . . 2 . 1 . . . . . 1 . . . . 1 . . . . . . Utility 10 | . . . 1 2 1 2 . . . . 1 . . . . 1 . 2 . . . . Weapon 1 | . . . 1 . . . . . . . . . . . . . . . . . . . Parts Attached 127 | 7 5 4 20 36 7 3 . . 3 3 6 1 . 1 . 5 5 2 5 3 10 1 Power 14 | 1 1 . 2 2 2 . . . . . 1 . . 1 . 1 2 . 1 . . . Engine 4 | 1 1 . 1 . . . . . . . . . . . . . 1 . . . . . Core 5 | . . . 1 2 2 . . . . . . . . . . . . . . . . . Reactor 5 | . . . . . . . . . . . 1 . . 1 . 1 1 . 1 . . . Propulsion 34 | 2 . 1 7 14 . . . . . . 1 . . . . 3 1 . . . 5 . Treads 12 | 2 . 1 6 3 . . . . . . . . . . . . . . . . . . Leg . | . . . . . . . . . . . . . . . . . . . . . . . Wheel . | . . . . . . . . . . . . . . . . . . . . . . . Hover 8 | . . . . 5 . . . . . . . . . . . . . . . . 3 . Flight 14 | . . . 1 6 . . . . . . 1 . . . . 3 1 . . . 2 . Utility 46 | 2 2 1 1 14 4 1 . . 2 1 4 . . . . 1 . 2 4 3 4 . Device 20 | 1 1 1 . 5 1 1 . . . 1 1 . . . . . . 1 4 2 1 . Storage 3 | 1 1 . . 1 . . . . . . . . . . . . . . . . . . Processor 10 | . . . 1 4 2 . . . 1 . . . . . . . . . . . 2 . Hackware 8 | . . . . 1 1 . . . 1 . 3 . . . . 1 . 1 . . . . Protection 5 | . . . . 3 . . . . . . . . . . . . . . . 1 1 . Artifact . | . . . . . . . . . . . . . . . . . . . . . . . Weapon 33 | 2 2 2 10 6 1 2 . . 1 2 . 1 . . . . 2 . . . 1 1 Energy Gun 9 | 1 . 1 5 . . . . . . . . . . . . . 2 . . . . . Energy Cannon 5 | . 1 . . 1 . . . . 1 1 . . . . . . . . . . 1 . Ballistic Gun 11 | 1 1 . 4 3 1 . . . . . . 1 . . . . . . . . . . Ballistic Cannon . | . . . . . . . . . . . . . . . . . . . . . . . Launcher 4 | . . 1 1 . . 1 . . . . . . . . . . . . . . . 1 Special Weapon 1 | . . . . 1 . . . . . . . . . . . . . . . . . . Impact Weapon . | . . . . . . . . . . . . . . . . . . . . . . . Slashing Weapon 3 | . . . . 1 . 1 . . . 1 . . . . . . . . . . . . Piercing Weapon . | . . . . . . . . . . . . . . . . . . . . . . . Special Melee Weapon . | . . . . . . . . . . . . . . . . . . . . . . . Unidentified Prototypes 24 | . . . 4 2 1 . . 1 1 . . . . 2 . 1 3 1 2 5 . 1 Corrupted Parts 11 | . . . 6 5 . . . . . . . . . . . . . . . . . . System Corruption 67 | . . . 34 33 . . . . . . . . . . . . . . . . . . Parts Lost 49 | . 3 3 8 4 2 . . . . . . . . . . 1 2 . 1 10 10 5 Power 8 | . 1 1 1 1 1 . . . . . . . . . . . 1 . . 2 . . Propulsion 16 | . . 1 2 . . . . . . . . . . . . 1 1 . 1 2 5 3 Utility 14 | . 1 . . 2 1 . . . . . . . . . . . . . . 4 4 2 Weapon 11 | . 1 1 5 1 . . . . . . . . . . . . . . . 2 1 . Highest Loss Streak 9 | . 1 2 5 1 1 . . . . . . . . . . 1 2 . 1 8 9 5 To Critical Strikes 2 | . . 1 . 1 . . . . . . . . . . . . . . . . . . Average Backups 9 | 2 8 14 14 11 6 6 8 8 8 7 7 7 8 7 8 7 6 7 7 6 6 5 Power . | . . . . . . . . . . . . . . . . . . . . . . . Propulsion 1 | . 1 1 2 3 . . . . . . . . . . . . . . . . . . Utility 4 | . 3 7 7 4 4 4 5 5 4 3 2 2 3 3 3 2 2 3 2 2 2 2 Weapon 2 | . 3 5 3 1 . 1 2 2 2 3 3 4 4 3 3 3 3 3 2 1 1 1 Tool/Special . | . . . . . . . . . . . . . . . . . . . . . . . Unused Backups 24 | . 5 . 4 8 . 2 . . . . . . . 1 . 1 1 . . . . 2 Power 1 | . 1 . . . . . . . . . . . . . . . . . . . . . Propulsion 6 | . . . . 6 . . . . . . . . . . . . . . . . . . Utility 7 | . . . 1 2 . 1 . . . . . . . . . 1 1 . . . . 1 Weapon 8 | . 4 . 3 . . . . . . . . . . 1 . . . . . . . . Tool/Special 2 | . . . . . . 1 . . . . . . . . . . . . . . . 1 Average Slot Usage (%) 86 | . 93 92 85 91 81 76 76 73 80 88 85 90 90 87 90 88 88 84 89 75 40 40 Engine 2 | . 12 8 1 . . . . . 2 5 4 . . . . . . . . . . . Core 3 | . . . 6 6 6 5 5 5 5 5 5 5 5 5 5 2 . . . . . . Reactor 1 | . . . . . . . . . . . . 5 5 5 5 5 7 8 8 4 . . Treads 12 | . 28 26 25 11 . . . . . . . . . . . . . . . . . . Hover 1 | . . . . 7 . . . . . . . . . . . . . . . . . 10 Flight 12 | . . . . 10 30 29 29 27 27 27 26 30 30 30 30 29 27 25 24 19 7 . Device 10 | . 10 14 9 7 8 11 11 11 11 13 14 15 15 13 15 13 12 12 18 17 4 . Storage 7 | . 14 14 9 7 6 5 5 5 5 5 5 5 5 5 5 4 4 4 4 3 . . Processor 11 | . . . 8 14 13 17 17 16 20 22 20 20 20 20 20 18 18 16 16 15 15 17 Hackware 2 | . . . . 1 7 . . . 1 2 4 5 5 5 5 8 9 9 8 7 7 7 Energy Gun 5 | . 14 5 20 . . . . . . . . . . . . . 2 4 4 1 . . Energy Cannon 1 | . . 14 1 . . . . . . . . . . . . . . . . . . . Ballistic Gun 5 | . 13 7 3 13 . . . . . . . . . . . . . . . . . . Slashing Weapon 2 | . . . . 2 6 5 5 5 5 4 5 5 5 4 5 4 3 4 4 3 . . Peak Build Rating 142 | 7 11 11 29 53 54 59 54 54 72 73 82 88 82 86 87 103 117 131 142 132 112 100 Average Rating 47 | 5 7 9 24 37 47 53 54 54 60 67 73 81 82 80 83 94 101 120 131 116 79 95 On Entrance 64 | . 7 11 10 19 43 52 54 54 54 65 69 81 82 82 83 83 102 117 123 127 74 100 Naked Turns . | . . . . . . . . . . . . . . . . . . . . . . . Heaviest Build 47 | 15 31 33 43 47 19 22 16 16 18 30 30 30 30 37 30 31 41 37 39 39 15 15 Greatest Support 80 | 40 40 40 80 80 30 30 30 30 30 30 36 36 36 36 36 44 48 48 48 41 78 78 Greatest Overweight (x) 4 | . . 1 1 4 . . . . . . . . . 1 . . 1 . . . 4 . Average Overweight (x) . | . . . . . . . . . . . . . . . . . . . . . . . Largest Inventory Capacity 15 | 8 15 15 15 15 8 8 8 8 8 8 8 8 8 8 8 8 8 8 8 10 7 7 Average Capacity 10 | 7 10 15 15 12 8 8 8 8 8 8 8 8 8 8 8 8 8 8 8 9 7 7 Most Carried 15 | 4 15 15 15 15 8 8 8 8 8 8 8 8 8 8 8 8 8 8 8 10 7 7 Average Carried 9 | 2 8 14 14 11 6 6 8 8 7 7 7 7 8 7 7 7 7 8 7 7 7 6 Final Capacity 15 | 8 15 15 15 8 8 8 8 8 8 8 8 8 8 8 8 8 8 8 8 7 7 7 Final Carried 15 | 4 15 14 14 8 6 8 8 8 8 8 7 8 8 8 8 7 8 8 8 7 7 3 Class Distribution -------------------- 25% | Mutant 17% | Scout 17% | Scavenger-Gunner 13% | Scavenger-Scout 9% | Hacker-Ninja 6% | Gunner 4% | Hacker-Scout Dominant Class ---------------- Mutant | -10/Materials Mutant | -10/Subcaves Gunner | -8/Materials Scavenger-Gunner | -7/Factory Hacker-Scout | -6/Factory Scout | -5/Factory Scout | -5/Upper Caves Scout | -5/Upper Caves Scout | -5/Warlord Scout | -4/Proximity Caves Scavenger-Scout | -4/Factory Scavenger-Scout | -4/Upper Caves Scavenger-Scout | -4/Upper Caves Scavenger-Scout | -4/Zhirov Scavenger-Scout | -3/Proximity Caves Scavenger-Scout | -3/Research Scavenger-Scout | -3/Testing Scavenger-Scout | -2/Research Hacker-Ninja | -2/Quarantine Hacker-Ninja | -2/Section 7 Hacker-Scout | -1/Access Hacker-Mutant | -1/Garrison Resources | -11 -10 -10 -8 -7 -6 -5 -5 -5 -5 -4 -4 -4 -4 -4 -3 -3 -3 -2 -2 -2 -1 -1 ----------- Run | Yrd Mat Sub Mat Fac Fac Fac Upp Upp War Pro Fac Upp Upp Zhi Pro Res Tes Res Qua Sec Acc Gar Matter Collected 3212 | 321 243 130 430 1212 190 119 . . 46 44 92 18 . . 4 106 74 86 80 17 . . Remotely . | . . . . . . . . . . . . . . . . . . . . . . . Salvage Created 6486 | 281 772 251 1818 1825 518 269 . . . . 92 . . . . 262 109 . 272 17 . . Parts 380 | 28 55 19 88 96 30 18 . . . . 10 . . . . 9 8 . 16 3 . . Haulers Intercepted 12 | . 2 . 3 4 1 1 . . . . . . . . . . . . 1 . . . Recyclers Shooed 7 | 2 . . 2 2 1 . . . . . . . . . . . . . . . . . Parts Field Recycled . | . . . . . . . . . . . . . . . . . . . . . . . Retrieved Matter . | . . . . . . . . . . . . . . . . . . . . . . . Parts Self-Destructed 12 | . . 9 . . . . . . . . . . 3 . . . . . . . . . Prevented 1 | . . . . . . . 1 . . . . . . . . . . . . . . . Kills | -11 -10 -10 -8 -7 -6 -5 -5 -5 -5 -4 -4 -4 -4 -4 -3 -3 -3 -2 -2 -2 -1 -1 ------- Run | Yrd Mat Sub Mat Fac Fac Fac Upp Upp War Pro Fac Upp Upp Zhi Pro Res Tes Res Qua Sec Acc Gar Combat Hostiles Destroyed 64 | . 18 5 14 18 5 4 . . . . . . . . . . . . . . . . Melee 1 | . . . . 1 . . . . . . . . . . . . . . . . . . Guns 45 | . 18 1 11 15 . . . . . . . . . . . . . . . . . . Cannons 2 | . . 2 . . . . . . . . . . . . . . . . . . . . AOE 13 | . . 2 . 2 5 4 . . . . . . . . . . . . . . . . Classes Destroyed 17 | 3 6 3 3 2 . . . . . . . . . . . . . . . . . . Worker 16 | 2 1 . 4 5 1 . . . . . . . . . . . 2 . 1 . . . Builder 16 | . 1 . 4 3 2 2 . . . . . . . . . . 1 . 2 1 . . Tunneler 10 | 8 . . . 1 . . . . . . 1 . . . . . . . . . . . Hauler 12 | . 2 . 3 4 1 1 . . . . . . . . . . . . 1 . . . Recycler 17 | 1 . . 6 6 2 . . . . . . . . . . 2 . . . . . . Mechanic 1 | . 1 . . . . . . . . . . . . . . . . . . . . . Operator 6 | . . . 1 2 1 . . . . . 1 . . . . . . . 1 . . . Watcher 13 | . 1 . 4 2 . 3 . . . . 1 . . . . . 1 . 1 . . . Swarmer 17 | . 9 . . . 4 4 . . . . . . . . . . . . . . . . Grunt 24 | . 9 . 7 8 . . . . . . . . . . . . . . . . . . Duelist 3 | . . . 1 2 . . . . . . . . . . . . . . . . . . Sentry 9 | . . . 6 3 . . . . . . . . . . . . . . . . . . Hunter 1 | . . . . 1 . . . . . . . . . . . . . . . . . . Programmer 5 | . . . . 4 1 . . . . . . . . . . . . . . . . . Artisan 1 | . . 1 . . . . . . . . . . . . . . . . . . . . Subdweller 5 | . . 5 . . . . . . . . . . . . . . . . . . . . Zionite 2 | . . 2 . . . . . . . . . . . . . . . . . . . . Best Kill Streak 9 | 7 4 2 9 5 5 9 . . . . 1 . . . . 1 3 . 2 1 . . Combat Bots Only 5 | . 3 2 4 4 5 4 . . . . . . . . . . . . . . . . Max Kills in Single Turn 3 | 1 1 1 1 2 2 3 . . . . 1 . . . . 1 1 . 1 1 . . Gunslinging . | . . . . . . . . . . . . . . . . . . . . . . . Exploded 2 | . . 1 . 1 2 2 . . . . . . . . . . . . . . . . Melee 1 | . . . . 1 . . . . . . . . . . . . . . . . . . Uniques/NPCs Destroyed . | . . . . . . . . . . . . . . . . . . . . . . . Combat | -11 -10 -10 -8 -7 -6 -5 -5 -5 -5 -4 -4 -4 -4 -4 -3 -3 -3 -2 -2 -2 -1 -1 -------- Run | Yrd Mat Sub Mat Fac Fac Fac Upp Upp War Pro Fac Upp Upp Zhi Pro Res Tes Res Qua Sec Acc Gar Hostile Shots Fired 762 | . 74 26 63 161 47 6 . 3 11 4 . . 3 . . 22 6 . 32 63 149 92 Missed 315 | . 19 7 19 45 31 2 . 2 6 2 . . 3 . . 9 1 . 22 33 70 44 Hits 447 | . 55 19 44 116 16 4 . 1 5 2 . . . . . 13 5 . 10 30 79 48 Melee 9 | . . . 1 4 . . . . . . . . . . . . . . . 4 . . Projectile 438 | . 55 19 43 112 16 4 . 1 5 2 . . . . . 13 5 . 10 26 79 48 AOE 2 | . . . . . . . . . . . . . . . . . . . . 2 . . Critical Strikes 24 | . . 2 4 2 . . . . . . . . . . . 1 . . 1 . 13 1 Actively Blocked 2 | . . . . . . . . . . . . . . . . . . . . . 2 . Part Disruptions 1 | . . . . 1 . . . . . . . . . . . . . . . . . . Damage Taken 8970 | . 536 406 923 1371 363 58 . 20 83 20 . . . . . 254 119 . 233 845 1871 1868 Core 2515 | . 131 21 70 127 119 . . 20 83 20 . . . . . 47 . . 39 215 631 992 Absorbed by Shields 8 | . . . . . 8 . . . . . . . . . . . . . . . . . Redirected to Shielding 232 | . . . . 7 . . . . . . . . . . . . . . . 93 132 . Regen/Repaired (Parts) 255 | . . . 35 2 . 33 . . 21 . . . . . . . . . . . 164 . Core Remaining (%) 81 | 100 . 39 87 81 86 . . . . 87 . . . . 100 . 88 . . 68 . . Volleys Fired 323 | 26 73 28 64 81 4 3 . . . 8 4 . . . 3 . 6 . 11 5 6 1 Largest 3 | 2 2 2 3 3 1 1 . . . 1 1 . . . 1 . 1 . 1 1 1 1 Hottest 165 | 70 70 128 165 136 30 36 . . . 90 90 . . . 90 . 90 . 80 80 113 . Shots Fired 628 | 49 137 45 139 207 4 3 . . . 8 4 . . . 3 . 6 . 11 5 6 1 Gun 543 | 49 136 15 135 191 . . . . . . . . . . . . 4 . 11 2 . . Cannon 66 | . 1 26 4 9 . . . . . 8 4 . . . 3 . 2 . . 3 6 . Launcher 14 | . . 4 . 2 4 3 . . . . . . . . . . . . . . . 1 Special 5 | . . . . 5 . . . . . . . . . . . . . . . . . . Kinetic 302 | 26 65 9 11 191 . . . . . . . . . . . . . . . . . . Thermal 176 | 23 72 32 8 14 . . . . . 8 4 . . . 3 . 5 . . . 6 1 Explosive 13 | . . 4 . 2 4 3 . . . . . . . . . . . . . . . . Electromagnetic 134 | . . . 120 . . . . . . . . . . . . . 1 . 11 2 . . Entropic 3 | . . . . . . . . . . . . . . . . . . . . 3 . . Robot Hit Streak 15 | 8 13 11 13 15 3 4 . . . . . . . . . . 2 . 3 . 1 . Robot Miss Streak 4 | 2 4 1 2 4 1 1 . . . . . . . . . . . . 4 . 2 . Penetration Max . | . . . . . . . . . . . . . . . . . . . . . . . Secondary Targets 3 | . 1 . . 2 . . . . . . . . . . . . . . . . . . Max Gunslinging Chain 1 | . 1 . . 1 . . . . . . . . . . . . . . . . . . Shots Hit Robots 456 | 34 86 31 103 149 18 6 . . . . 5 . . . . 5 6 . 9 3 1 . Core Hits 246 | 12 37 14 49 90 14 11 . . . . 3 . . . . 2 5 . 8 . . 1 Critical Kills 1 | . . . . 1 . . . . . . . . . . . . . . . . . . Critical Parts Destroyed 2 | . 1 . . 1 . . . . . . . . . . . . . . . . . . Critical Strikes 10 | 1 3 . 2 3 1 . . . . . . . . . . . . . . . . . Burn 3 | 1 2 . . . . . . . . . . . . . . . . . . . . . Destroy 3 | . 1 . . 2 . . . . . . . . . . . . . . . . . . Corrupt 2 | . . . 2 . . . . . . . . . . . . . . . . . . . Sever 2 | . . . . 1 1 . . . . . . . . . . . . . . . . . Melee Attacks 190 | . . . . 38 24 11 1 3 . 2 24 . 1 . 3 15 16 2 31 19 . . Impact . | . . . . . . . . . . . . . . . . . . . . . . . Slashing 190 | . . . . 38 24 11 1 3 . 2 24 . 1 . 3 15 16 2 31 19 . . Piercing . | . . . . . . . . . . . . . . . . . . . . . . . Sneak Attacks 38 | . . . . 10 7 3 . . . . 2 . . . . 3 5 . 5 3 . . Combat Hostiles . | . . . . . . . . . . . . . . . . . . . . . . . Follow-up Attacks . | . . . . . . . . . . . . . . . . . . . . . . . Damage Inflicted 11465 | 438 1084 800 2211 3275 1115 618 . . . . 307 . . . . 345 454 . 528 228 47 15 Guns 5839 | 438 1084 114 1930 2102 . . . . . . . . . . . . 55 . 116 . . . Cannons 653 | . . 367 82 157 . . . . . . . . . . . . . . . . 47 . Explosions 1378 | . . 319 199 187 298 375 . . . . . . . . . . . . . . . . Melee 3573 | . . . . 822 817 243 . . . . 307 . . . . 345 399 . 412 228 . . Ramming 15 | . . . . . . . . . . . . . . . . . . . . . . 15 Kinetic 2915 | 226 426 52 109 2102 . . . . . . . . . . . . . . . . . . Thermal 1921 | 212 658 429 254 164 . 130 . . . . . . . . . . 27 . . . 47 . Explosive 1100 | . . 319 87 151 298 245 . . . . . . . . . . . . . . . . Electromagnetic 1941 | . . . 1761 36 . . . . . . . . . . . . 28 . 116 . . . Impact . | . . . . . . . . . . . . . . . . . . . . . . . Slashing 3573 | . . . . 822 817 243 . . . . 307 . . . . 345 399 . 412 228 . . Piercing . | . . . . . . . . . . . . . . . . . . . . . . . Highest Corruption 34 | . 3 3 34 34 1 . . . . . . . . . . 3 4 . . . . . Average Corruption 12 | . 2 3 25 31 1 . . . . . . . . . . 2 3 . . . . . Corruption Purged . | . . . . . . . . . . . . . . . . . . . . . . . Corruption Blocked . | . . . . . . . . . . . . . . . . . . . . . . . Effects 111 | . 16 14 35 38 1 . . . . . . . . . . 1 6 . . . . . Message Errors 29 | . 3 6 5 14 . . . . . . . . . . . 1 . . . . . . Matter Fused 25 | . 1 3 9 10 . . . . . . . . . . . . 2 . . . . . Heat Flow Errors 13 | . 3 2 2 3 . . . . . . . . . . . . 3 . . . . . Energy Discharges 8 | . 2 1 3 2 . . . . . . . . . . . . . . . . . . Parts Rejected 1 | . . . 1 . . . . . . . . . . . . . . . . . . . Parts Fused 1 | . 1 . . . . . . . . . . . . . . . . . . . . . Data Loss (minor) 11 | . 3 . 3 4 1 . . . . . . . . . . . . . . . . . Data Loss (major) 5 | . . . 2 2 . . . . . . . . . . . . 1 . . . . . Misfires 6 | . 1 . 5 . . . . . . . . . . . . . . . . . . . Alerts 4 | . 1 . 1 2 . . . . . . . . . . . . . . . . . . Misdirections 1 | . . . . 1 . . . . . . . . . . . . . . . . . . Weapon Failures 7 | . 1 2 4 . . . . . . . . . . . . . . . . . . . Overload Shots . | . . . . . . . . . . . . . . . . . . . . . . . Overflow Damage 821 | . . 8 128 200 80 54 . . . . . . . . . 14 67 . 50 77 . 143 Projectiles 8 | . . 8 . . . . . . . . . . . . . . . . . . . . Explosions 337 | . . . 128 . 12 54 . . . . . . . . . . . . . . . 143 Melee 476 | . . . . 200 68 . . . . . . . . . . 14 67 . 50 77 . . Knockbacks . | . . . . . . . . . . . . . . . . . . . . . . . Impact . | . . . . . . . . . . . . . . . . . . . . . . . Kinetic . | . . . . . . . . . . . . . . . . . . . . . . . Secondary . | . . . . . . . . . . . . . . . . . . . . . . . Self-Inflicted Damage 1169 | . . . 162 . . . . . . . . . . . . . . . . . . 1007 Shots 5 | . . . 4 . . . . . . . . . . . . . . . . . . 1 Rammed 1 | . . . . . . . . . . . . . . . . . . . . . . 1 Targets Rammed 1 | . . . . . . . . . . . . . . . . . . . . . . 1 Kicked . | . . . . . . . . . . . . . . . . . . . . . . . Crushed . | . . . . . . . . . . . . . . . . . . . . . . . Highest Temperature 407 | 81 296 207 407 401 54 4 4 8 133 98 . . . . . 300 215 335 . . . . Average Temperature 63 | 33 90 35 108 85 18 2 2 2 43 46 . . . . . 144 90 180 . . . . Received Heat Transfer 1218 | . 186 96 324 366 . . . 9 18 . . . . . . 12 . . 9 90 72 36 Effects 11 | . . . 7 3 . . . . . . . . . . . . . 1 . . . . Shutdowns 2 | . . . 1 1 . . . . . . . . . . . . . . . . . . Energy Bleed 3 | . . . 1 1 . . . . . . . . . . . . . 1 . . . . Matter Decay 1 | . . . . 1 . . . . . . . . . . . . . . . . . . Damage (minor) 1 | . . . 1 . . . . . . . . . . . . . . . . . . . Damage (major) 4 | . . . 4 . . . . . . . . . . . . . . . . . . . Siege Activations . | . . . . . . . . . . . . . . . . . . . . . . . Martial Activations . | . . . . . . . . . . . . . . . . . . . . . . . Shielding Activations . | . . . . . . . . . . . . . . . . . . . . . . . Robots Disrupted 3 | . . . 1 . . . . . . . . . . . . . 1 . 1 . . . Combat Hostiles 1 | . . . 1 . . . . . . . . . . . . . . . . . . . Robots Corrupted 3 | . . . 3 . . . . . . . . . . . . . . . . . . . Combat Hostiles 3 | . . . 3 . . . . . . . . . . . . . . . . . . . Parts Fried 10 | . . . 9 . . . . . . . . . . . . . . . 1 . . . Impact Corruptions . | . . . . . . . . . . . . . . . . . . . . . . . Robots Melted . | . . . . . . . . . . . . . . . . . . . . . . . Combat Hostiles . | . . . . . . . . . . . . . . . . . . . . . . . Parts Melted 6 | . 3 3 . . . . . . . . . . . . . . . . . . . . Heat Transferred 4338 | 703 2072 741 323 325 . 100 . . . . . . . . . . 37 . . . 37 . Parts Sabotaged . | . . . . . . . . . . . . . . . . . . . . . . . Parts Stolen . | . . . . . . . . . . . . . . . . . . . . . . . Parts Stripped . | . . . . . . . . . . . . . . . . . . . . . . . Power Chain Reactions 3 | . . . 3 . . . . . . . . . . . . . . . . . . . Alert | -11 -10 -10 -8 -7 -6 -5 -5 -5 -5 -4 -4 -4 -4 -4 -3 -3 -3 -2 -2 -2 -1 -1 ------- Run | Yrd Mat Sub Mat Fac Fac Fac Upp Upp War Pro Fac Upp Upp Zhi Pro Res Tes Res Qua Sec Acc Gar Maximum Alert Level 2 | . . . . 2 1 2 . . . . . . . . . . . . . 1 1 1 Low Security (%) 84 | 100 100 . 100 82 51 61 . . . . 100 . . . . 100 100 100 100 38 26 . Level 1 11 | . . . . 7 48 3 . . . . . . . . . . . . . 62 73 100 Level 2 3 | . . . . 9 . 35 . . . . . . . . . . . . . . . . Level 3 . | . . . . . . . . . . . . . . . . . . . . . . . Level 4 . | . . . . . . . . . . . . . . . . . . . . . . . Level 5 . | . . . . . . . . . . . . . . . . . . . . . . . High Security . | . . . . . . . . . . . . . . . . . . . . . . . Max Security . | . . . . . . . . . . . . . . . . . . . . . . . Peak Influence 472 | 20 145 . 162 461 366 472 . . . . 53 . . . . 194 146 69 165 301 399 334 Initial 259 | . . . . 67 224 171 . . . . . . . . . 150 108 51 45 90 144 259 Average 118 | 3 59 . 64 149 234 267 . . . . 11 . . . . 148 106 60 108 193 288 280 Influence Increases 5020 | 55 530 . 610 1069 344 385 . 60 . . 147 . 60 . 15 284 145 51 325 465 390 85 Destroy 0b10 Robot/C 1180 | . 360 . 280 360 100 80 . . . . . . . . . . . . . . . . Destroy 0b10 Robot/NC 450 | 55 30 . 110 115 35 30 . . . . 10 . . . . 10 20 . 30 5 . . Destroy Leader 320 | . 66 . 94 112 22 18 . . . . 2 . . . . . 2 . 4 . . . Successful Hack 206 | . 13 . 40 9 7 20 . . . . 40 . . . . 18 15 18 . 1 15 10 Disable Machine 345 | . . . 30 30 . 60 . . . . . . . . . . 60 . 75 90 . . Anti-Garrison Action 200 | . . . . 200 . . . . . . . . . . . . . . . . . . Destroy Structure 309 | . 1 . 26 33 15 72 . . . . 20 . . . . 16 18 3 51 39 15 . Advance Influence 150 | . . . . . . . . . . . . . . . . 150 . . . . . . Partial Spotted 450 | . . . . 30 60 15 . . . . 45 . . . . 45 30 30 60 135 . . Lose Combat Pursuer 1410 | . 60 . 30 180 105 90 . 60 . . 30 . 60 . 15 45 . . 105 195 360 75 Influence Decreases 4726 | 55 474 56 460 761 452 269 243 93 190 . 104 43 20 40 15 90 246 62 245 386 307 115 Entered New Map 1385 | . . 28 . 83 234 179 173 43 190 . . 16 . 40 . . 86 42 37 72 97 65 Time Decay 2825 | 55 444 28 385 577 198 90 70 50 . . 104 27 20 . 15 80 140 20 198 214 110 . Lost Part 445 | . 30 . 75 30 20 . . . . . . . . . . 10 20 . 10 100 100 50 Purge Threat 71 | . . . . 71 . . . . . . . . . . . . . . . . . . Squads Dispatched 41 | . 3 . 2 16 3 3 . . . . 1 . . . . 3 . . 2 5 3 . Investigation 16 | . 2 . 1 6 1 3 . . . . . . . . . 1 . . . . 2 . Extermination 12 | . . . . 5 1 . . . . . . . . . . 1 . . 2 2 1 . Reinforcement 13 | . 1 . 1 5 1 . . . . . 1 . . . . 1 . . . 3 . . Assault . | . . . . . . . . . . . . . . . . . . . . . . . Garrison . | . . . . . . . . . . . . . . . . . . . . . . . Intercept . | . . . . . . . . . . . . . . . . . . . . . . . Searches Triggered . | . . . . . . . . . . . . . . . . . . . . . . . Construction Impeded 1 | . . . . 1 . . . . . . . . . . . . . . . . . . Haulers Reinforced 4 | . . . . 2 . . . . . . . . . . . 1 . . . 1 . . Active Scanning Responses . | . . . . . . . . . . . . . . . . . . . . . . . Cargo Convoy Interrupts . | . . . . . . . . . . . . . . . . . . . . . . . Stealth | -11 -10 -10 -8 -7 -6 -5 -5 -5 -5 -4 -4 -4 -4 -4 -3 -3 -3 -2 -2 -2 -1 -1 --------- Run | Yrd Mat Sub Mat Fac Fac Fac Upp Upp War Pro Fac Upp Upp Zhi Pro Res Tes Res Qua Sec Acc Gar Distress Signals 20 | . 3 . 3 3 1 2 . . . . . . . . 2 1 . . 1 . 4 . Communications Jammed 17 | . . . . . . . . . . . . . . . . . . . . 17 . . Distress Signals 17 | . . . . . . . . . . . . . . . . . . . . 17 . . Times Spotted 267 | . 30 5 23 40 15 14 . 4 2 2 5 . 7 . 2 10 4 1 15 33 38 17 Peak Tracking Total 22 | . 5 2 7 5 6 7 . 4 2 2 4 . 5 . 2 11 3 1 4 12 22 12 Tactical Retreats 41 | . 4 . 2 7 3 4 . 1 . . 1 . 2 . 1 1 . . 5 5 4 1 Traps | -11 -10 -10 -8 -7 -6 -5 -5 -5 -5 -4 -4 -4 -4 -4 -3 -3 -3 -2 -2 -2 -1 -1 ------- Run | Yrd Mat Sub Mat Fac Fac Fac Upp Upp War Pro Fac Upp Upp Zhi Pro Res Tes Res Qua Sec Acc Gar Traps Triggered 15 | . 3 . 4 . 3 1 . . . . . . . . . 1 . . . 1 . 2 Indirectly . | . . . . . . . . . . . . . . . . . . . . . . . Trap Hack Attempts . | . . . . . . . . . . . . . . . . . . . . . . . Triggered . | . . . . . . . . . . . . . . . . . . . . . . . Disarmed . | . . . . . . . . . . . . . . . . . . . . . . . Reprogrammed . | . . . . . . . . . . . . . . . . . . . . . . . Reused . | . . . . . . . . . . . . . . . . . . . . . . . Traps Extracted . | . . . . . . . . . . . . . . . . . . . . . . . Installed . | . . . . . . . . . . . . . . . . . . . . . . . Triggered . | . . . . . . . . . . . . . . . . . . . . . . . Machines | -11 -10 -10 -8 -7 -6 -5 -5 -5 -5 -4 -4 -4 -4 -4 -3 -3 -3 -2 -2 -2 -1 -1 ---------- Run | Yrd Mat Sub Mat Fac Fac Fac Upp Upp War Pro Fac Upp Upp Zhi Pro Res Tes Res Qua Sec Acc Gar Machines Disabled 24 | . 1 . 2 2 . 4 . . . . . . . . . . 4 . 5 6 . . Max in Single Turn 4 | . 1 . 1 2 . 4 . . . . . . . . . . 1 . 1 1 . . Garrison Access 6 | . . . 1 1 . . . . . . 1 . . . . . . 1 1 . 1 . Machines Repaired . | . . . . . . . . . . . . . . . . . . . . . . . Machines Dismantled . | . . . . . . . . . . . . . . . . . . . . . . . Machines Sabotaged . | . . . . . . . . . . . . . . . . . . . . . . . Overloaded Fab Kills . | . . . . . . . . . . . . . . . . . . . . . . . Hacking | -11 -10 -10 -8 -7 -6 -5 -5 -5 -5 -4 -4 -4 -4 -4 -3 -3 -3 -2 -2 -2 -1 -1 --------- Run | Yrd Mat Sub Mat Fac Fac Fac Upp Upp War Pro Fac Upp Upp Zhi Pro Res Tes Res Qua Sec Acc Gar Machines Accessed 82 | . 8 . 7 19 5 5 1 . 2 1 4 1 1 4 . 3 4 3 2 7 4 1 Terminals 48 | . 8 . 5 10 3 3 1 . . 1 2 . . . . 3 2 1 1 7 . 1 Fabricators 6 | . . . . 3 1 . . . . . 1 . . . . . . 1 . . . . Repair Stations 9 | . . . 1 3 1 2 . . . . . . . . . . . . . . 2 . Recycling Units . | . . . . . . . . . . . . . . . . . . . . . . . Scanalyzers 4 | . . . . 2 . . . . . . . . . . . . 2 . . . . . Garrison Access 7 | . . . 1 1 . . . . . . 1 . . . . . . 1 1 . 2 . Total Hacks 183 | . 22 . 15 50 13 9 3 . 2 2 11 1 1 17 . 5 8 3 2 9 9 1 Successful 113 | . 13 . 11 16 10 5 3 . 2 2 8 1 1 17 . 1 5 3 2 8 4 1 Failed 70 | . 9 . 4 34 3 4 . . . . 3 . . . . 4 3 . . 1 5 . Catastrophic 11 | . . . . 8 2 . . . . . . . . . . 1 . . . . . . Database Lockouts . | . . . . . . . . . . . . . . . . . . . . . . . Manual 108 | . 22 . 15 29 7 9 . . . . 8 . . . . 4 6 1 . 2 5 . Terminals 109 | . 22 . 13 26 8 7 3 . . 2 7 . . . . 5 4 1 1 9 . 1 Fabricators 16 | . . . . 10 2 . . . . . 3 . . . . . . 1 . . . . Repair Stations 16 | . . . 1 5 3 2 . . . . . . . . . . . . . . 5 . Recycling Units . | . . . . . . . . . . . . . . . . . . . . . . . Scanalyzers 11 | . . . . 7 . . . . . . . . . . . . 4 . . . . . Garrison Access 10 | . . . 1 2 . . . . . . 1 . . . . . . 1 1 . 4 . Terminal Hacks 41 | . 2 . . 3 1 . 3 . 2 2 . 1 1 17 . 1 . . 1 6 . 1 Record 11 | . . . . . 1 . 3 . . 2 . . . 5 . . . . . . . . Part Schematic 4 | . . . . . . . . . . . . . . 4 . . . . . . . . Robot Analysis 6 | . 2 . . . . . . . . . . . . 4 . . . . . . . . Prototype ID Bank 4 | . . . . . . . . . . . . . . 4 . . . . . . . . Open Door 9 | . . . . . . . . . 2 . . 1 1 . . . . . 1 4 . . Level Access Points 1 | . . . . 1 . . . . . . . . . . . . . . . . . . Branch Access Points 2 | . . . . 1 . . . . . . . . . . . 1 . . . . . . Unreport Threat 1 | . . . . 1 . . . . . . . . . . . . . . . . . . Locate Traps 1 | . . . . . . . . . . . . . . . . . . . . 1 . . Security Stations 1 | . . . . . . . . . . . . . . . . . . . . . . 1 Activate Exoskeleton 1 | . . . . . . . . . . . . . . . . . . . . 1 . . Fabricator Hacks 7 | . . . . 3 1 . . . . . 2 . . . . . . 1 . . . . Network Status 3 | . . . . 1 1 . . . . . . . . . . . . 1 . . . . Load Schematic 3 | . . . . 2 . . . . . . 1 . . . . . . . . . . . Build 1 | . . . . . . . . . . . 1 . . . . . . . . . . . Repair Station Hacks 4 | . . . . 2 2 . . . . . . . . . . . . . . . . . Scan Component 2 | . . . . 1 1 . . . . . . . . . . . . . . . . . Repair 2 | . . . . 1 1 . . . . . . . . . . . . . . . . . Recycling Unit Hacks . | . . . . . . . . . . . . . . . . . . . . . . . Scanalyzer 5 | . . . . 4 . . . . . . . . . . . . 1 . . . . . Insert Component 3 | . . . . 2 . . . . . . . . . . . . 1 . . . . . Analyze 2 | . . . . 2 . . . . . . . . . . . . . . . . . . Garrison Access Hacks 6 | . . . 1 . . . . . . . 1 . . . . . . 1 1 . 2 . Unlock Access 1 | . . . . . . . . . . . . . . . . . . . . . 1 . Seal Access 5 | . . . 1 . . . . . . . 1 . . . . . . 1 1 . 1 . Unauthorized Hacks 50 | . 11 . 10 4 6 5 . . . . 5 . . . . . 4 1 . 2 2 . Terminals 41 | . 11 . 9 2 6 3 . . . . 4 . . . . . 3 1 . 2 . . Track 2 | . . . . . . . . . . . . . . . . . . . . 2 . . Assimilate 3 | . . . . . 1 . . . . . 1 . . . . . . 1 . . . . Botnet 20 | . 5 . 4 2 3 3 . . . . 2 . . . . . 1 . . . . . Skim 16 | . 6 . 5 . 2 . . . . . 1 . . . . . 2 . . . . . Fabricators 2 | . . . . 1 . . . . . . 1 . . . . . . . . . . . Prioritize 1 | . . . . . . . . . . . 1 . . . . . . . . . . . Recompile 1 | . . . . 1 . . . . . . . . . . . . . . . . . . Repair Stations 5 | . . . 1 . . 2 . . . . . . . . . . . . . . 2 . Patch 5 | . . . 1 . . 2 . . . . . . . . . . . . . . 2 . Recycling Units . | . . . . . . . . . . . . . . . . . . . . . . . Scanalyzers 1 | . . . . . . . . . . . . . . . . . 1 . . . . . Researchers 1 | . . . . . . . . . . . . . . . . . 1 . . . . . Garrison Access 1 | . . . . 1 . . . . . . . . . . . . . . . . . . Jam 1 | . . . . 1 . . . . . . . . . . . . . . . . . . Data Cores Recovered 3 | . . . 1 2 . . . . . . . . . . . . . . . . . . Used 1 | . . . . 1 . . . . . . . . . . . . . . . . . . Hacking Detections 49 | . 7 . 5 16 5 1 1 . . . 3 . . . . 2 3 2 . 1 3 . Full Trace Events 8 | . 1 . . 4 1 1 1 . . . . . . . . . . . . . . . Feedback Events . | . . . . . . . . . . . . . . . . . . . . . . . Feedback Blocked . | . . . . . . . . . . . . . . . . . . . . . . . Robot Schematics Acquired . | . . . . . . . . . . . . . . . . . . . . . . . Robots Built . | . . . . . . . . . . . . . . . . . . . . . . . Authchips . | . . . . . . . . . . . . . . . . . . . . . . . Time . | . . . . . . . . . . . . . . . . . . . . . . . Total Robot Build Rating . | . . . . . . . . . . . . . . . . . . . . . . . Part Schematics Acquired 5 | . . . . 1 . . . . . . . . . 4 . . . . . . . . Parts Built 1 | . . . . . . . . . . . 1 . . . . . . . . . . . Authchips 1 | . . . . . . . . . . . 1 . . . . . . . . . . . Time 67 | . . . . . . . . . . . 67 . . . . . . . . . . . Total Part Build Rating 4 | . . . . . . . . . . . 4 . . . . . . . . . . . Parts Repaired 1 | . . . . 1 . . . . . . . . . . . . . . . . . . Time 158 | . . . . 88 70 . . . . . . . . . . . . . . . . . Parts Recycled . | . . . . . . . . . . . . . . . . . . . . . . . Recycled Matter . | . . . . . . . . . . . . . . . . . . . . . . . Retrieved Matter . | . . . . . . . . . . . . . . . . . . . . . . . Retrieved Components . | . . . . . . . . . . . . . . . . . . . . . . . Parts Scanalyzed 1 | . . . . 1 . . . . . . . . . . . . . . . . . . Part Schematics Acquired 1 | . . . . 1 . . . . . . . . . . . . . . . . . . Parts Damaged . | . . . . . . . . . . . . . . . . . . . . . . . Bothacking | -11 -10 -10 -8 -7 -6 -5 -5 -5 -5 -4 -4 -4 -4 -4 -3 -3 -3 -2 -2 -2 -1 -1 ------------ Run | Yrd Mat Sub Mat Fac Fac Fac Upp Upp War Pro Fac Upp Upp Zhi Pro Res Tes Res Qua Sec Acc Gar Used RIF Installer . | . . . . . . . . . . . . . . . . . . . . . . . Robots Hacked . | . . . . . . . . . . . . . . . . . . . . . . . Non-combat . | . . . . . . . . . . . . . . . . . . . . . . . Combat . | . . . . . . . . . . . . . . . . . . . . . . . Robot Hacks Applied . | . . . . . . . . . . . . . . . . . . . . . . . Relay Couplers Released . | . . . . . . . . . . . . . . . . . . . . . . . Fabnet Peak Effective % . | . . . . . . . . . . . . . . . . . . . . . . . Robots Rewired . | . . . . . . . . . . . . . . . . . . . . . . . Allies Hacked . | . . . . . . . . . . . . . . . . . . . . . . . Hacks Repelled . | . . . . . . . . . . . . . . . . . . . . . . . Allies | -11 -10 -10 -8 -7 -6 -5 -5 -5 -5 -4 -4 -4 -4 -4 -3 -3 -3 -2 -2 -2 -1 -1 -------- Run | Yrd Mat Sub Mat Fac Fac Fac Upp Upp War Pro Fac Upp Upp Zhi Pro Res Tes Res Qua Sec Acc Gar Total Allies 3 | . . . . . 1 . . . . . 1 . . . . . . 1 . . . . Largest Group 1 | . . . . . . . . . . . 1 . . . . . . 1 . . . . Highest-Rated Group 45 | . . . . . . . . . . . 26 . . . . . . 45 . . . . Highest-Rated Ally 45 | . . . . . . . . . . . 26 . . . . . . 45 . . . . Total Orders . | . . . . . . . . . . . . . . . . . . . . . . . Ally Attacks . | . . . . . . . . . . . . . . . . . . . . . . . Total Damage . | . . . . . . . . . . . . . . . . . . . . . . . Kills . | . . . . . . . . . . . . . . . . . . . . . . . Allies Corrupted . | . . . . . . . . . . . . . . . . . . . . . . . Allies Melted . | . . . . . . . . . . . . . . . . . . . . . . . Intel | -11 -10 -10 -8 -7 -6 -5 -5 -5 -5 -4 -4 -4 -4 -4 -3 -3 -3 -2 -2 -2 -1 -1 ------- Run | Yrd Mat Sub Mat Fac Fac Fac Upp Upp War Pro Fac Upp Upp Zhi Pro Res Tes Res Qua Sec Acc Gar Active Infowar (turns) 7477 | 32 648 665 588 1902 418 190 144 116 135 151 334 115 95 44 195 177 287 54 418 450 228 91 Optics 3226 | . . . . . 2 190 144 116 135 151 334 115 95 44 195 177 287 54 418 450 228 91 Sensors 4063 | . . . . 661 418 190 144 116 135 151 280 115 95 28 195 177 287 54 418 450 149 . Terrain 191 | . . . . 136 . . . . . . . . . . . . . . 55 . . . Structural 2998 | . . . . . 169 190 144 116 135 151 334 115 95 44 195 177 287 54 300 373 119 . Seismic 3027 | 32 648 665 588 1094 . . . . . . . . . . . . . . . . . . Decoding 2741 | . . . . . . . . . 102 151 334 115 95 44 195 177 287 54 418 450 228 91 Machine Analysis 5349 | . . . . 1739 418 190 144 116 135 151 334 115 95 44 195 177 287 54 418 450 228 59 Cloaking 625 | . . . . . . . . . . . . . . . . . . . 349 276 . . Jamming 799 | . . . . . . . . . . . . . . . . . . . 351 448 . . ECM 2 | . . . . 2 . . . . . . . . . . . . . . . . . . Robot Analysis Total 6 | . 2 . . . . . . . . . . . . 4 . . . . . . . . Derelict Logs Recovered 5 | . . 2 . . . . . 1 . 2 . . . . . . . . . . . . Drone Launches . | . . . . . . . . . . . . . . . . . . . . . . . Drone Recoveries . | . . . . . . . . . . . . . . . . . . . . . . . Decoded 0b10 Intel 43 | . . . . . . . . . . . 7 . . . . 6 7 1 3 9 8 2 Garrisons 1 | . . . . . . . . . . . . . . . . 1 . . . . . . Patrols 30 | . . . . . . . . . . . 6 . . . . 2 7 . 3 4 6 2 Guards 12 | . . . . . . . . . . . 1 . . . . 3 . 1 . 5 2 . Exploration | -11 -10 -10 -8 -7 -6 -5 -5 -5 -5 -4 -4 -4 -4 -4 -3 -3 -3 -2 -2 -2 -1 -1 ------------- Run | Yrd Mat Sub Mat Fac Fac Fac Upp Upp War Pro Fac Upp Upp Zhi Pro Res Tes Res Qua Sec Acc Gar Turns Passed 9146 | 278 1298 669 1326 1933 418 190 144 116 135 151 334 115 95 44 195 177 287 54 418 450 228 91 Spaces Moved 12845 | 96 592 308 548 2016 974 540 486 391 479 518 495 435 342 152 492 443 414 176 1077 1236 486 149 Core 17 | 2 . . . . . . . . . . . . . . . . . . . . 15 . Treads 1853 | 94 592 308 548 311 . . . . . . . . . . . . . . . . . . Legs . | . . . . . . . . . . . . . . . . . . . . . . . Wheels . | . . . . . . . . . . . . . . . . . . . . . . . Hover 535 | . . . . 360 . . . . . . . . . . . . . . . . 26 149 Flight 10440 | . . . . 1345 974 540 486 391 479 518 495 435 342 152 492 443 414 176 1077 1236 445 . Fastest Speed 15 | 50 160 160 160 26 23 23 23 23 23 23 20 20 20 20 20 15 18 20 20 24 32 52 Average Speed 46 | 157 160 163 180 61 23 23 23 23 23 23 20 20 20 20 20 16 18 20 20 24 39 52 Slowest Speed 350 | 160 160 240 240 350 26 23 23 23 23 23 23 20 20 85 20 20 88 20 24 32 250 56 Overloaded Moves . | . . . . . . . . . . . . . . . . . . . . . . . Propulsion Burnouts . | . . . . . . . . . . . . . . . . . . . . . . . Robots Hopped 34 | . . . . 3 . . . . 1 . . . . . . 1 . . 1 19 9 . Potential Cave-ins . | . . . . . . . . . . . . . . . . . . . . . . . Cave-ins Triggered . | . . . . . . . . . . . . . . . . . . . . . . . Teleports 5 | . . . . . . . . . . . . . . . . . 1 . 1 1 . 2 Exploration Rate (%) 47 | 4 81 16 43 47 26 21 71 67 73 68 16 72 56 61 69 21 57 9 88 80 22 31 Regions Visited 22 Branch Regions 12 Pre-discovered Areas 6 | . . 2 1 . . . . . . . . . . 3 . . . . . . . . Known Exits Taken 20 | . 1 1 1 1 1 1 1 1 1 1 1 1 1 1 1 1 1 1 1 . 1 . Unknown Exits Taken 2 | 1 . . . . . . . . . . . . . . . . . . . 1 . . Scrap Searched 15 | . . . . . . . 1 2 . 5 . 3 2 . 2 . . . . . . . Spaces Dug 116 | . . . . 21 6 7 1 3 . 10 12 . 1 . 6 8 9 1 17 13 1 . Terrain Destroyed 211 | . . 15 25 28 15 42 1 3 . 10 12 . 1 . 6 8 9 1 17 13 5 . Melee 95 | . . . . 21 6 7 1 3 . 2 8 . 1 . 3 8 7 1 17 10 . . Projectile 25 | . . . . . . . . . . 8 4 . . . 3 . 2 . . 3 5 . AOE 91 | . . 15 25 7 9 35 . . . . . . . . . . . . . . . . Terrain Rammed . | . . . . . . . . . . . . . . . . . . . . . . . Walls Destroyed . | . . . . . . . . . . . . . . . . . . . . . . . Machines Disabled . | . . . . . . . . . . . . . . . . . . . . . . . Actions | -11 -10 -10 -8 -7 -6 -5 -5 -5 -5 -4 -4 -4 -4 -4 -3 -3 -3 -2 -2 -2 -1 -1 --------- Run | Yrd Mat Sub Mat Fac Fac Fac Upp Upp War Pro Fac Upp Upp Zhi Pro Res Tes Res Qua Sec Acc Gar Total 15165 | 170 808 426 759 2503 1118 585 515 411 501 539 697 462 366 164 582 527 602 191 1233 1341 503 162 Wait 1427 | 38 116 84 88 261 81 8 29 17 20 3 159 25 24 . 83 58 144 11 91 70 8 9 Move 12758 | 95 591 307 547 2010 973 539 485 390 476 517 494 434 341 151 491 440 413 175 1074 1198 469 148 Hop 31 | . . . . 2 . . . . 1 . . . . . . 1 . . 1 18 8 . Pick Up 74 | 4 16 1 10 17 3 4 . . . . 2 1 . 1 . 2 3 . 7 3 . . Fast Attach 124 | 7 4 1 26 26 7 2 . 1 2 2 4 1 . 4 . 3 6 2 3 12 11 . Attach 52 | . . 1 4 9 5 3 . . 1 2 4 . . 2 1 3 5 . 4 5 . 3 Detach 26 | . 1 . . 3 3 3 . . 1 2 1 . . 2 1 1 4 . 1 3 . . Swap 22 | . 1 3 7 7 1 . . . . 1 1 . . . . . . . 1 . . . Drop 111 | . 6 1 13 48 5 4 . . . 2 4 1 . 4 . 3 5 1 9 4 1 . Fire 323 | 26 73 28 64 81 4 3 . . . 8 4 . . . 3 . 6 . 11 5 6 1 Melee 190 | . . . . 38 24 11 1 3 . 2 24 . 1 . 3 15 16 2 31 19 . . Ram 1 | . . . . . . . . . . . . . . . . . . . . . . 1 Kick . | . . . . . . . . . . . . . . . . . . . . . . . Crush . | . . . . . . . . . . . . . . . . . . . . . . . Escape Stasis 21 | . . . . . 11 6 . . . . . . . . . . . . . 4 . . Rewire . | . . . . . . . . . . . . . . . . . . . . . . . Trap . | . . . . . . . . . . . . . . . . . . . . . . . Miscellaneous 5 | . . . . 1 1 2 . . . . . . . . . 1 . . . . . . Route ------- -11/Scrapyard -10/Materials (discovered 4 exits: [*Mat x2] / [*Min] / *Sub) -10/Subcaves (discovered 3 exits: *Mat x2 / Rec) -8/Materials (discovered 3 exits: *Fac x3) -7/Factory (discovered 6 exits: *Fac x4 / Low x2) -6/Factory (discovered 2 exits: *Fac x2) -5/Factory (discovered 2 exits: *Fac / *Upp) -5/Upper Caves -5/Upper Caves (discovered 2 exits: *Fac / *War) -5/Warlord -4/Proximity Caves -4/Factory -4/Upper Caves -4/Upper Caves -4/Zhirov -3/Proximity Caves -3/Research (discovered 4 exits: Res / Arm / *Tes x2) -3/Testing -2/Research -2/Quarantine (discovered 3 exits: *Acc / *Sec / *Frg) -2/Section 7 -1/Access -1/Garrison (discovered 1 exit: [*Acc]) History --------- Turn | Location | Event 4 | -11/Scrapyard | Discovered new exit (range 16) 279 | -11/Scrapyard | Entered Materials 318 | -10/Materials | Build established: Mutant 588 | -10/Materials | Discovered new exit (range 10) 797 | -10/Materials | Discovered new exit (range 13) 1121 | -10/Materials | Discovered new exit (range 3) 1290 | -10/Materials | Identified exit to Subcaves 1322 | -10/Materials | Learned 4 Recycling zone layouts 1362 | -10/Materials | Learned location of 2 exits from Subcaves 1365 | -10/Materials | Learned Storage stockpile data 1407 | -10/Materials | Learned location of 1 exit from Recycling 1432 | -10/Materials | Core integrity fell below 50% 1577 | -10/Materials | Entered Subcaves 1578 | -10/Subcaves | Identified exit to Recycling 1578 | -10/Subcaves | Identified exit to Materials 1626 | -10/Subcaves | Ambushed by angry Subdweller bent on revenge 1846 | -10/Subcaves | Learned location of Storage (-9) 1849 | -10/Subcaves | A swath of the cavern ceiling suddenly collapsed 2186 | -10/Subcaves | Learned location of Zion (-7) 2186 | -10/Subcaves | Met a Zionite searching for "candidates" 2246 | -10/Subcaves | Entered Materials 2246 | -8/Materials | Evolved 4 slots: Propulsion x2, Utility x1, Weapon x1 2556 | -8/Materials | Build established: Gunner 2669 | -8/Materials | Discovered new exit (range 10) 2836 | -8/Materials | Identified exit to Factory 2883 | -8/Materials | Learned Factory trap positions 2893 | -8/Materials | System corruption reached 10% 3230 | -8/Materials | Build established: Scavenger-Gunner 3444 | -8/Materials | Lost 5 parts (1p1n3w) 3543 | -8/Materials | System corruption reached 30% 3572 | -8/Materials | Entered Factory 3572 | -7/Factory | Evolved 2 slots: Utility x2 3573 | -7/Factory | Loaded intel: 94 trap records 3835 | -7/Factory | Identified exit to Lower Caves 4811 | -7/Factory | System corruption reached 10% 4831 | -7/Factory | System corruption reached 30% 5109 | -7/Factory | Build established: Scout 5228 | -7/Factory | Identified exit to Factory 5318 | -7/Factory | Repaired Broken Imp. Cesium-ion Thruster? 5505 | -7/Factory | Entered another Factory area 5505 | -6/Factory | Evolved 2 slots: Propulsion x1, Utility x1 5567 | -6/Factory | Discovered new exit (range 12) 5570 | -6/Factory | Identified exit to Factory 5604 | -6/Factory | Spotted B-75 Beast 5815 | -6/Factory | Discovered exit to Factory (range 5) 5923 | -6/Factory | Entered another Factory area 5923 | -5/Factory | Evolved 2 slots: Utility x2 6090 | -5/Factory | Discovered new exit (range 2) 6090 | -5/Factory | Identified exit to Factory 6094 | -5/Factory | Discovered new exit (range 16) 6113 | -5/Factory | Identified exit to Upper Caves 6113 | -5/Factory | Entered Upper Caves 6175 | -5/Upper Caves | Learned 8 Research zone layouts 6201 | -5/Upper Caves | Encountered a Warlord checkpoint 6232 | -5/Upper Caves | Discovered new exit (range 17) 6256 | -5/Upper Caves | Identified exit to Upper Caves 6257 | -5/Upper Caves | Entered another Upper Caves area 6259 | -5/Upper Caves | Discovered exit to Factory (range 16) 6280 | -5/Upper Caves | Found Alien Artifact 6280 | -5/Upper Caves | Identified Core Expander 6280 | -5/Upper Caves | Installed Core Expander, added new Power slot 6334 | -5/Upper Caves | Learned 8 Factory zone layouts 6357 | -5/Upper Caves | Discovered new exit (range 8) 6359 | -5/Upper Caves | Identified exit to Warlord 6373 | -5/Upper Caves | Entered Warlord 6374 | -5/Warlord | Identified exit to Proximity Caves 6460 | -5/Warlord | Visited the Vortex Lab 6461 | -5/Warlord | Found Prototype Energy Cannon 6461 | -5/Warlord | Identified Vortex Cannon 6464 | -5/Warlord | Warlord's base attacked by MAIN.C 6488 | -5/Warlord | Opened side exit 6494 | -5/Warlord | Spotted B-75 Beast 6496 | -5/Warlord | Spotted B-86 Titan 6508 | -5/Warlord | Entered Proximity Caves 6520 | -4/Proximity Caves | Learned Research security intel 6555 | -4/Proximity Caves | Spotted B-86 Titan 6657 | -4/Proximity Caves | Discovered exit to Factory (range 9) 6659 | -4/Proximity Caves | Entered Factory 6659 | -4/Factory | Evolved 2 slots: Propulsion x1, Utility x1 6682 | -4/Factory | Spotted B-86 Titan 6867 | -4/Factory | Fabricated Imp. Cesium-ion Thruster (x1) 6979 | -4/Factory | Discovered new exit (range 12) 6983 | -4/Factory | Build established: Scavenger-Scout 6993 | -4/Factory | Identified exit to Upper Caves 6993 | -4/Factory | Entered Upper Caves 6999 | -4/Upper Caves | Spotted B-86 Titan 7106 | -4/Upper Caves | Discovered new exit (range 6) 7108 | -4/Upper Caves | Identified exit to Upper Caves 7108 | -4/Upper Caves | Entered another Upper Caves area 7109 | -4/Upper Caves | Encountered a Warlord checkpoint 7130 | -4/Upper Caves | Attracted the attention of an 0b10 checkpoint 7181 | -4/Upper Caves | Entered a destroyed Warlord outpost 7201 | -4/Upper Caves | Discovered new exit (range 8) 7203 | -4/Upper Caves | Identified exit to Zhirov 7203 | -4/Upper Caves | Entered Zhirov 7203 | -4/Zhirov | Discovered new exit (range 3) 7207 | -4/Zhirov | Met Zhirov 7211 | -4/Zhirov | Learned location of Quarantine (-2) 7211 | -4/Zhirov | Learned location of Testing (-3) 7211 | -4/Zhirov | Learned location of Command (-1) 7213 | -4/Zhirov | Zhirov requested help retrieving the SGEMP Prototype 7216 | -4/Zhirov | Found Alien Artifact 7216 | -4/Zhirov | Identified Integrated Dissipator 7216 | -4/Zhirov | Installed Integrated Dissipator, increased core heat dissipation (+20) 7238 | -4/Zhirov | Found Alien Artifact 7247 | -4/Zhirov | Identified exit to Proximity Caves 7247 | -4/Zhirov | Entered Proximity Caves 7346 | -3/Proximity Caves | Attracted the attention of an 0b10 checkpoint 7368 | -3/Proximity Caves | Spotter reported a threat 7411 | -3/Proximity Caves | Spotted B-86 Titan 7430 | -3/Proximity Caves | Discovered new exit (range 6) 7431 | -3/Proximity Caves | Identified exit to Research 7442 | -3/Proximity Caves | Entered Research 7442 | -3/Research | Evolved 2 slots: Propulsion x1, Utility x1 7443 | -3/Research | Identified exit to Testing 7443 | -3/Research | Identified exit to Research 7568 | -3/Research | Identified exit to Armory 7619 | -3/Research | Entered Testing 7620 | -3/Testing | Identified Transdimensional Reconstructor 7620 | -3/Testing | Warped through subspace 7635 | -3/Testing | Spotted PL-7AMJ0XM5YK 7664 | -3/Testing | Found Portable AFG 7680 | -3/Testing | Found Prototype Energy Gun 7680 | -3/Testing | Identified Tachyon Dispersion Ray 7763 | -3/Testing | Found Prototype Energy Gun 7763 | -3/Testing | Identified Warp Gun 7897 | -3/Testing | Discovered exit to Research (range 4) 7906 | -3/Testing | Entered Research 7906 | -2/Research | Evolved 2 slots: Utility x2 7907 | -2/Research | Identified exit to Quarantine 7960 | -2/Research | Entered Quarantine 7987 | -2/Quarantine | Found Alien Artifact 8172 | -2/Quarantine | Discovered new exit (range 4) 8194 | -2/Quarantine | Found Alien Artifact 8197 | -2/Quarantine | Found Alien Artifact 8202 | -2/Quarantine | Found Alien Artifact 8204 | -2/Quarantine | Identified Dimensional Node Initializer 8204 | -2/Quarantine | Initialized slip node 8265 | -2/Quarantine | Identified Hpw. Transdimensional Reconstructor (x2) 8265 | -2/Quarantine | Warped through subspace to slip node 8266 | -2/Quarantine | Found Dimensional Node Initializer 8286 | -2/Quarantine | Build established: Hacker-Ninja 8338 | -2/Quarantine | Spotted Alpha 7 8341 | -2/Quarantine | Found Alien Launcher 8358 | -2/Quarantine | Spotted Fortress 8375 | -2/Quarantine | Discovered new exit (range 6) 8375 | -2/Quarantine | Discovered new exit (range 6) 8376 | -2/Quarantine | Identified exit to Section 7 8376 | -2/Quarantine | Identified exit to Protoforge 8378 | -2/Quarantine | Entered Section 7 8399 | -2/Section 7 | Found Alien Artifact 8399 | -2/Section 7 | Identified Integrated Mediator 8399 | -2/Section 7 | Installed Integrated Mediator, increased core attachment efficiency 8431 | -2/Section 7 | Initialized slip node 8467 | -2/Section 7 | Found Alien Artifact 8467 | -2/Section 7 | Identified Integrated Reactor 8467 | -2/Section 7 | Installed Integrated Reactor, increased core energy generation (+10) 8501 | -2/Section 7 | Spotted Executioner 8501 | -2/Section 7 | Spotted Executioner 8508 | -2/Section 7 | Spotted B-99 Colossus 8525 | -2/Section 7 | Found Core Expander 8525 | -2/Section 7 | Installed Core Expander, added new Power slot 8527 | -2/Section 7 | Found Core Expander 8527 | -2/Section 7 | Installed Core Expander, added new Weapon slot 8529 | -2/Section 7 | Found Core Expander 8541 | -2/Section 7 | Found Alien Artifact 8541 | -2/Section 7 | Identified LRC Storage 8541 | -2/Section 7 | Installed LRC Storage, increased inventory capacity (+2) 8634 | -2/Section 7 | Spotted Executioner 8635 | -2/Section 7 | Spotted Executioner 8638 | -2/Section 7 | Spotted Striker 8638 | -2/Section 7 | Spotted Striker 8656 | -2/Section 7 | Found Transdimensional Reconstructor 8657 | -2/Section 7 | Found Transdimensional Reconstructor 8658 | -2/Section 7 | Warped through subspace to slip node 8690 | -2/Section 7 | Spotted B-90 Cyclops 8732 | -2/Section 7 | Spotted S7 Guard 8736 | -2/Section 7 | Found Alien Artifact 8739 | -2/Section 7 | Identified Core Membrane 8739 | -2/Section 7 | Installed Core Membrane, gained immunity to corruption 8762 | -2/Section 7 | Discovered new exit (range 22) 8828 | -2/Section 7 | Entered Access 8857 | -1/Access | Lost 8 parts (1p2n4u1w) 9055 | -1/Access | Lost 9 parts (4n4u1w) 9056 | -1/Access | Identified exit to Garrison 9056 | -1/Access | Entered Garrison 9066 | -1/Garrison | Learned Access security intel 9096 | -1/Garrison | Spotted B-99 Colossus 9108 | -1/Garrison | Triggered checkpoint 9124 | -1/Garrison | Discovered new exit (range 11) 9130 | -1/Garrison | Attempted to access garrison exit controls, blocked by remote lockdown 9135 | -1/Garrison | Warped through subspace 9136 | -1/Garrison | Core integrity fell below 50% 9136 | -1/Garrison | Warped through subspace 9146 | -1/Garrison | Identified Sigix Terminator 9147 | -1/Garrison | Fired Sigix Terminator 9147 | -1/Garrison | Destroyed self with Sigix Terminator Last Messages --------------- 09115_ Machine Analyzer destroyed. 09121_ Core Membrane filtered system corruption (1). 09124_ EXIT=FOUND 09125_ Critical hit (Burn: +37). 09130_ Attempting to access garrison exit controls... 09130_ Remote lockdown engaged. 09134_ Imp. Heavy Armor Plating destroyed. 09135_ Warped through subspace. 09135_ Antigrav Array destroyed. 09136_ Penetrated by Slug. 09136_ Slug penetrates Wall. 09136_ Warped through subspace. 09142_ P-80 Master springs to life. 09142_ Core Membrane filtered system corruption (1). 09146_ Identified Sigix Terminator. 09147_ Sigix Terminator expended. 09147_ Antigrav Array destroyed. 09147_ Destroyed Antigrav Array. 09147_ Antigrav Array destroyed. 09147_ Destroyed Antigrav Array. Map ----- +----------------------------------------------------+ | | | | | | | | | | | ???????????????????????????????????????? | | ???????????????????????????????????????? | | ???????????????????????????????????????? | | ???????????????????????????????????????? | | ???????????????????????????????????????? | | ???????????????????????????????????????? | | ???????????????????????????????????????? | | ???????????????????????????????????????? | | ???????????????????????????????????????? | | ???????????????????????????????????????? | | ???????????????????????????????????????? | | ???????????????????????????????????????? | | ???????????????????????????????????????? | | ???????????????????????????????????????? | | ???????????????????????????????????????? | | ???????????????????????????????????????? | | ???????????????????????????????????????? | | ???????????????????????????????????????? | | ??????????????????????????##???????????? | | ????????????????????????##p###?????????? | | ????????????????????????#@ !#?????????? | | ????????????????????????# !#?????????? | | ????????????????????????# !#?????????? | | ????????????????????????#! !#?????????? | | ????????????????????????#! !#?????????? | | ????????????????????????#! !#?????????? | | ????????????????????????# !#?????????? | | ????????????????????????# !#?????????? | | ????????????????????????# !#?????????? | | ????????????????????????##p###?????????? | | ??????????????????????????##???????????? | | ???????????????????????????????????????? | | ???????????????????????????????????????? | | ???????????????????????????????????????? | | ???????????????????????????????????????? | | ???????????????????????????????????????? | | ???????????????????????????????????????? | | ???????????????????????????????????????? | | ???????????????????????????????????????? | | ???????????????????????????????????????? | | ???????????????????????????????????????? | | ???????????????????????????????????????? | | ####???????????????????????????????????? | | ???????????????????????????????????? | | ???????????????????????????????????? | +----------------------------------------------------+ Best States ------------- Heat Dissipation 100 Coolant Potential 50 Energy Generation 45 Energy Capacity 310 Matter Stores 300 Matter Capacity 300 Sight Range 22 Robot Scan Range 16 Terrain Scan Range 14 Terrain Scan Density 85 Jamming Range 14 Cloak Strength 2 Armor Coverage 600 Core Shielding 40 Evasion (%) 67 Targeting Accuracy 8 Melee Accuracy 6 Armor Integrity Analysis 30 Recoil Reduction 4 Matter Filtering 30 Offensive Hacking 38 Authchip Count 1 Item Schematics ----------------- Imp. Cesium-ion Thruster | -7/Factory | Scanalyzed Assault Drone Bay | -4/Zhirov | Free Exp. Heat Sink | -4/Zhirov | Free Exp. Optical Array | -4/Zhirov | Free Imp. Arc Thrower | -4/Zhirov | Free Robot Schematics ------------------ None Fabricated ------------ Imp. Cesium-ion Thruster | x1 | -4/Factory | Authchip Repaired ---------- Imp. Cesium-ion Thruster | 96% | -7/Factory | Broken Alien Tech Used ----------------- Core Expander Integrated Dissipator Transdimensional Reconstructor Dimensional Node Initializer High-powered Transdimensional Reconstructor Integrated Mediator Integrated Reactor LRC Storage Core Membrane Sigix Terminator Achievements -------------- None Challenges ------------ None Game ------ Seed AntigravTiamatAccelerator Manual? 0 Play Time 01:50:55 Cumulative 251.3 hours Start 2025.08.23 @ 21:16:13 End 2025.08.24 @ 05:53:14 Sessions 5 Manual Loads 0 Difficulty Rogue Special Mode None Game No. 208 Rogue 208 Adventurer 0 Explorer 0 Win Type - Total 13 Types 6/0/5/2/0/0/0/0/0/0 Lore% 80 Gallery% 74 Achievement% 69 Wizard Run 0 Options --------- Layout 1 ASCII 0 Keyboard 0 Movement Numpad Keybinds 0 Fullscreen 1 Font 32/SmallcapsGlow Map View 77x35 Zoom Use 0% Tactical HUD 1 Map Filters NONE Filters NONE Steam 1 RUN: ade17075-1cf9-4bd6-808a-748b94133a9a